[Event "Schack-SM 2024: Mastarklassen"]
[Site "Fortnox Arena, Hejaregatan 5, Vaxjo, Sweden"]
[Date "2024.07.02"]
[Round "4.6"]
[White "Mashhadi, Peyman"]
[Black "Lind, Jan-Olov"]
[Result "1-0"]
[TimeControl "90 minutes for 40 moves + 30 minutes for the rest of the game + 30 seconds per move from move one."]
[WhiteElo "2116"]
[BlackElo "2135"]

1. d4 {[%clk 01:30:53]} {[%emt 00:00:08]} Nf6 {[%clk 01:30:14]} {[%emt
00:00:47]} 2. Nf3 {[%clk 01:31:11]} {[%emt 00:00:13]} g6 {[%clk 01:29:58]}
{[%emt 00:00:44]} 3. g3 {[%clk 01:31:13]} {[%emt 00:00:27]} Bg7 {[%clk
01:29:58]} {[%emt 00:00:30]} 4. Bg2 {[%clk 01:31:22]} {[%emt 00:00:21]} O-O
{[%clk 01:30:14]} {[%emt 00:00:16]} 5. O-O {[%clk 01:31:14]} {[%emt 00:00:36]}
d6 {[%clk 01:30:28]} {[%emt 00:00:16]} 6. c4 {[%clk 01:31:29]} {[%emt
00:00:15]} Nbd7 {[%clk 01:30:28]} {[%emt 00:00:30]} 7. Nc3 {[%clk 01:31:33]}
{[%emt 00:00:27]} e5 {[%clk 01:28:36]} {[%emt 00:02:22]} 8. e4 {[%clk
01:30:30]} {[%emt 00:01:32]} Re8 {[%clk 01:28:30]} {[%emt 00:00:37]} 9. Qc2
{[%clk 01:29:44]} {[%emt 00:01:16]} exd4 {[%clk 01:17:01]} {[%emt 00:12:00]} 10.
Nxd4 {[%clk 01:29:18]} {[%emt 00:00:55]} Nc5 {[%clk 01:17:04]} {[%emt
00:00:26]} 11. Rd1 {[%clk 01:28:50]} {[%emt 00:00:58]} a5 {[%clk 01:16:02]}
{[%emt 00:01:33]} 12. f3 {[%clk 01:17:36]} {[%emt 00:11:46]} c6 {[%clk
01:01:32]} {[%emt 00:15:00]} 13. Nde2 {[%clk 01:08:40]} {[%emt 00:09:25]} Qb6
{[%clk 00:47:13]} {[%emt 00:14:49]} 14. Be3 {[%clk 01:03:33]} {[%emt 00:05:35]}
Qb4 {[%clk 00:47:20]} {[%emt 00:00:24]} 15. Nf4 {[%clk 00:49:34]} {[%emt
00:14:29]} Qxc4 {[%clk 00:38:51]} {[%emt 00:08:59]} 16. Rd4 {[%clk 00:46:50]}
{[%emt 00:03:14]} Qa6 {[%clk 00:37:41]} {[%emt 00:01:42]} 17. Rxd6 {[%clk
00:44:27]} {[%emt 00:02:51]} b6 {[%clk 00:20:08]} {[%emt 00:18:03]} 18. Rxc6
{[%clk 00:42:31]} {[%emt 00:02:26]} Bd7 {[%clk 00:18:31]} {[%emt 00:02:07]} 19.
Rd6 {[%clk 00:40:29]} {[%emt 00:02:32]} Rac8 {[%clk 00:18:38]} {[%emt
00:00:25]} 20. Rad1 {[%clk 00:38:45]} {[%emt 00:02:13]} Qb7 {[%clk 00:18:42]}
{[%emt 00:00:24]} 21. Qf2 {[%clk 00:34:30]} {[%emt 00:04:45]} Bc6 {[%clk
00:17:49]} {[%emt 00:01:24]} 22. Bh3 {[%clk 00:29:09]} {[%emt 00:05:51]} Rb8
{[%clk 00:12:55]} {[%emt 00:05:25]} 23. a3 {[%clk 00:28:25]} {[%emt 00:01:14]}
g5 {[%clk 00:11:39]} {[%emt 00:01:46]} 24. Nfd5 {[%clk 00:24:25]} {[%emt
00:04:30]} Bxd5 {[%clk 00:10:34]} {[%emt 00:01:35]} 25. exd5 {[%clk 00:17:51]}
{[%emt 00:07:04]} Qe7 {[%clk 00:09:42]} {[%emt 00:01:23]} 26. Bxc5 {[%clk
00:18:08]} {[%emt 00:00:13]} bxc5 {[%clk 00:09:56]} {[%emt 00:00:15]} 27. Rc6
{[%clk 00:15:30]} {[%emt 00:03:08]} Qb7 {[%clk 00:04:51]} {[%emt 00:05:34]} 28.
Rxc5 {[%clk 00:13:27]} {[%emt 00:02:34]} g4 {[%clk 00:04:22]} {[%emt 00:00:59]}
29. Rb5 {[%clk 00:10:53]} {[%emt 00:03:05]} Qd7 {[%clk 00:04:02]} {[%emt
00:00:49]} 30. Rxb8 {[%clk 00:10:43]} {[%emt 00:00:40]} Rxb8 {[%clk 00:04:26]}
{[%emt 00:00:07]} 31. Bg2 {[%clk 00:09:43]} {[%emt 00:01:29]} gxf3 {[%clk
00:04:14]} {[%emt 00:00:43]} 32. Bxf3 {[%clk 00:10:00]} {[%emt 00:00:12]} Ng4
{[%clk 00:04:11]} {[%emt 00:00:33]} 33. Bxg4 {[%clk 00:08:22]} {[%emt
00:02:08]} Qxg4 {[%clk 00:04:36]} {[%emt 00:00:05]} 34. Qf4 {[%clk 00:04:06]}
{[%emt 00:04:46]} Qxf4 {[%clk 00:03:08]} {[%emt 00:01:59]} 35. gxf4 {[%clk
00:04:33]} {[%emt 00:00:02]} Rxb2 {[%clk 00:03:14]} {[%emt 00:00:24]} 36. Na4
{[%clk 00:04:42]} {[%emt 00:00:22]} Rc2 {[%clk 00:02:17]} {[%emt 00:01:26]} 37.
d6 {[%clk 00:04:33]} {[%emt 00:00:39]} Bf6 {[%clk 00:01:29]} {[%emt 00:01:18]}
38. d7 {[%clk 00:04:39]} {[%emt 00:00:24]} Bd8 {[%clk 00:01:30]} {[%emt
00:00:29]} 39. Re1 {[%clk 00:04:32]} {[%emt 00:00:37]} Kg7 {[%clk 00:00:58]}
{[%emt 00:01:00]} 40. Re8 {[%clk 00:04:38]} {[%emt 00:00:25]} Bf6 {[%clk
00:00:47]} {[%emt 00:00:41]} 41. d8=Q {[%clk 00:04:28]} {[%emt 00:00:41]} Bxd8
{[%clk 00:01:06]} {[%emt 00:00:10]} 42. Rxd8 {[%clk 00:04:53]} {[%emt
00:00:05]} Rc4 {[%clk 00:01:20]} {[%emt 00:00:16]} 43. Nb6 {[%clk 00:04:40]}
{[%emt 00:00:45]} Rxf4 {[%clk 00:01:31]} {[%emt 00:00:18]} 44. Rd5 {[%clk
00:02:59]} {[%emt 00:02:10]} Rf6 {[%clk 00:01:00]} {[%emt 00:01:01]} 45. Nc4
{[%clk 00:02:28]} {[%emt 00:01:01]} Rc6 {[%clk 00:29:01]} {[%emt 00:02:29]} 46.
Rd4 {[%clk 00:30:24]} {[%emt 00:02:35]} Rc5 {[%clk 00:25:33]} {[%emt 00:03:57]}
47. Kf2 {[%clk 00:30:07]} {[%emt 00:00:47]} f5 {[%clk 00:24:14]} {[%emt
00:01:49]} 48. Ke3 {[%clk 00:30:09]} {[%emt 00:00:29]} Kg6 {[%clk 00:23:48]}
{[%emt 00:00:56]} 49. a4 {[%clk 00:21:01]} {[%emt 00:09:38]} Kg5 {[%clk
00:23:49]} {[%emt 00:00:29]} 50. h4+ {[%clk 00:20:07]} {[%emt 00:01:23]} Kh5
{[%clk 00:23:39]} {[%emt 00:00:40]} 51. Kd3 {[%clk 00:18:40]} {[%emt 00:02:00]}
h6 {[%clk 00:23:21]} {[%emt 00:00:48]} 52. Kc3 {[%clk 00:13:47]} {[%emt
00:05:23]} Rc7 {[%clk 00:21:12]} {[%emt 00:02:39]} 53. Rf4 {[%clk 00:12:01]}
{[%emt 00:02:16]} Rg7 {[%clk 00:15:42]} {[%emt 00:05:59]} 54. Nxa5 {[%clk
00:11:12]} {[%emt 00:01:19]} Rg4 {[%clk 00:15:21]} {[%emt 00:00:51]} 55. Rxg4
{[%clk 00:11:12]} {[%emt 00:00:31]} fxg4 {[%clk 00:15:29]} {[%emt 00:00:21]} 56.
Nc4 {[%clk 00:11:31]} {[%emt 00:00:11]} g3 {[%clk 00:15:16]} {[%emt 00:00:42]}
57. Ne3 {[%clk 00:11:56]} {[%emt 00:00:06]} Kxh4 {[%clk 00:15:09]} {[%emt
00:00:37]} 58. a5 {[%clk 00:12:17]} {[%emt 00:00:09]} 1-0

[Event "Schack-SM 2024: Mastarklassen"]
[Site "Fortnox Arena, Hejaregatan 5, Vaxjo, Sweden"]
[Date "2024.07.02"]
[Round "4.7"]
[White "Malm, Simon 1995"]
[Black "Tuomainen, Felix"]
[Result "0-1"]
[TimeControl "90 minutes for 40 moves + 30 minutes for the rest of the game + 30 seconds per move from move one."]
[BlackTitle "FM"]
[WhiteElo "1948"]
[BlackElo "2255"]

1. d4 {[%clk 01:30:56]} {[%emt 00:00:02]} Nf6 {[%clk 01:28:55]} {[%emt
00:02:05]} 2. c4 {[%clk 01:31:19]} {[%emt 00:00:07]} e6 {[%clk 01:28:06]}
{[%emt 00:01:20]} 3. Nc3 {[%clk 01:31:06]} {[%emt 00:00:43]} Bb4 {[%clk
01:28:22]} {[%emt 00:00:15]} 4. f3 {[%clk 01:31:02]} {[%emt 00:00:32]} d5
{[%clk 01:27:10]} {[%emt 00:01:39]} 5. a3 {[%clk 01:31:07]} {[%emt 00:00:30]}
Bxc3+ {[%clk 01:27:32]} {[%emt 00:00:07]} 6. bxc3 {[%clk 01:31:34]} {[%emt
00:00:02]} O-O {[%clk 01:27:36]} {[%emt 00:00:27]} 7. cxd5 {[%clk 01:31:52]}
{[%emt 00:00:12]} exd5 {[%clk 01:27:16]} {[%emt 00:00:50]} 8. e3 {[%clk
01:32:10]} {[%emt 00:00:12]} c5 {[%clk 01:23:06]} {[%emt 00:04:40]} 9. Bd3
{[%clk 01:32:13]} {[%emt 00:00:27]} b6 {[%clk 01:21:28]} {[%emt 00:02:08]} 10.
Ne2 {[%clk 01:32:28]} {[%emt 00:00:14]} Ba6 {[%clk 01:21:46]} {[%emt 00:00:11]}
11. O-O {[%clk 01:32:16]} {[%emt 00:00:43]} Bxd3 12. Qxd3 {[%clk 01:32:44]} Re8
{[%clk 01:22:27]} {[%emt 00:00:07]} 13. Ng3 {[%clk 01:32:00]} {[%emt 00:01:12]}
h5 {[%clk 01:22:26]} {[%emt 00:00:32]} 14. Ra2 {[%clk 01:25:24]} {[%emt
00:07:06]} Nc6 {[%clk 01:18:56]} {[%emt 00:03:58]} 15. Re2 {[%clk 01:18:33]}
{[%emt 00:07:21]} cxd4 {[%clk 01:16:23]} {[%emt 00:03:05]} 16. cxd4 {[%clk
01:18:03]} {[%emt 00:01:00]} Qd7 {[%clk 01:16:19]} {[%emt 00:00:33]} 17. Bb2
{[%clk 01:13:07]} {[%emt 00:05:26]} Rad8 {[%clk 01:16:30]} {[%emt 00:00:20]} 18.
Rd1 {[%clk 01:00:54]} {[%emt 00:12:43]} Ne7 {[%clk 01:09:00]} {[%emt 00:08:00]}
19. e4 {[%clk 00:57:18]} {[%emt 00:04:07]} h4 {[%clk 01:08:35]} {[%emt
00:00:54]} 20. Nf1 {[%clk 00:47:50]} {[%emt 00:09:57]} Ng6 {[%clk 01:07:57]}
{[%emt 00:01:09]} 21. Bc1 {[%clk 00:37:20]} {[%emt 00:11:00]} dxe4 {[%clk
01:06:56]} {[%emt 00:01:32]} 22. fxe4 {[%clk 00:37:30]} {[%emt 00:00:19]} Qg4
{[%clk 00:59:57]} {[%emt 00:07:28]} 23. h3 {[%clk 00:35:06]} {[%emt 00:02:54]}
Qh5 {[%clk 01:00:09]} {[%emt 00:00:16]} 24. Qf3 {[%clk 00:33:06]} {[%emt
00:02:32]} Qb5 {[%clk 01:00:13]} {[%emt 00:00:22]} 25. Rb2 {[%clk 00:15:07]}
{[%emt 00:18:32]} Qa4 {[%clk 00:59:17]} {[%emt 00:01:24]} 26. Rb4 {[%clk
00:10:58]} {[%emt 00:04:40]} Qc2 {[%clk 00:59:16]} {[%emt 00:00:29]} 27. Bg5
{[%clk 00:10:12]} {[%emt 00:01:19]} Qxe4 {[%clk 00:58:24]} {[%emt 00:01:22]} 28.
Qf2 {[%clk 00:08:42]} {[%emt 00:02:00]} Rd5 {[%clk 00:54:41]} {[%emt 00:04:11]}
29. Nd2 {[%clk 00:07:28]} {[%emt 00:01:46]} Qc2 {[%clk 00:54:36]} {[%emt
00:00:32]} 30. Bxf6 {[%clk 00:02:05]} {[%emt 00:05:55]} Qxd1+ {[%clk 00:55:00]}
{[%emt 00:00:06]} 31. Nf1 {[%clk 00:02:29]} {[%emt 00:00:06]} gxf6 {[%clk
00:55:04]} {[%emt 00:00:27]} 32. Qxf6 {[%clk 00:02:20]} {[%emt 00:00:39]} a5
{[%clk 00:55:18]} {[%emt 00:00:16]} 33. Rc4 {[%clk 00:01:44]} {[%emt 00:01:06]}
b5 {[%clk 00:55:14]} {[%emt 00:00:34]} 34. Qc6 {[%clk 00:01:37]} {[%emt
00:00:37]} bxc4 {[%clk 00:55:18]} {[%emt 00:00:27]} 35. Qxd5 {[%clk 00:01:14]}
{[%emt 00:00:52]} c3 {[%clk 00:55:24]} {[%emt 00:00:24]} 0-1

[Event "Schack-SM 2024: Mastarklassen"]
[Site "Fortnox Arena, Hejaregatan 5, Vaxjo, Sweden"]
[Date "2024.07.01"]
[Round "3.6"]
[White "Collett, Peter"]
[Black "Malm, Simon 1995"]
[Result "1-0"]
[TimeControl "90 minutes for 40 moves + 30 minutes for the rest of the game + 30 seconds per move from move one."]
[WhiteTitle "CM"]
[WhiteElo "2116"]
[BlackElo "1948"]

1. d4 {[%clk 01:30:58]} {[%emt 16:58:46]} d5 {[%clk 01:30:57]} 2. c4 {[%clk
01:31:19]} {[%emt 00:00:09]} c6 {[%clk 01:31:22]} {[%emt 00:00:04]} 3. Nf3
{[%clk 01:31:39]} {[%emt 00:00:11]} Nf6 {[%clk 01:31:32]} {[%emt 00:00:20]} 4.
e3 {[%clk 01:32:00]} {[%emt 00:00:09]} e6 {[%clk 01:31:24]} {[%emt 00:00:38]} 5.
b3 {[%clk 01:31:29]} {[%emt 00:01:00]} Ne4 {[%clk 01:29:55]} {[%emt 00:01:59]}
6. Bd3 {[%clk 01:28:09]} {[%emt 00:03:50]} Bb4+ {[%clk 01:30:02]} {[%emt
00:00:23]} 7. Nbd2 {[%clk 01:28:14]} {[%emt 00:00:25]} Nd7 {[%clk 01:30:22]}
{[%emt 00:00:11]} 8. O-O {[%clk 01:27:05]} {[%emt 00:01:38]} f5 {[%clk
01:30:17]} {[%emt 00:00:35]} 9. a3 {[%clk 01:25:48]} {[%emt 00:01:48]} Bd6
{[%clk 01:30:28]} {[%emt 00:00:19]} 10. Bb2 {[%clk 01:24:08]} {[%emt 00:02:10]}
Qf6 {[%clk 01:30:07]} {[%emt 00:00:51]} 11. Bxe4 {[%clk 01:00:07]} {[%emt
00:24:31]} fxe4 {[%clk 01:28:55]} {[%emt 00:01:43]} 12. Ne1 {[%clk 01:00:14]}
{[%emt 00:00:22]} Qh6 {[%clk 01:15:03]} {[%emt 00:14:23]} 13. g3 {[%clk
00:59:36]} {[%emt 00:01:08]} O-O {[%clk 01:15:07]} {[%emt 00:00:25]} 14. Qe2
{[%clk 00:58:56]} {[%emt 00:01:10]} b6 {[%clk 00:50:41]} {[%emt 00:24:58]} 15.
f3 {[%clk 00:57:54]} {[%emt 00:01:30]} exf3 {[%clk 00:49:38]} {[%emt 00:01:35]}
16. Nexf3 {[%clk 00:57:02]} {[%emt 00:01:21]} Ba6 {[%clk 00:41:42]} {[%emt
00:08:26]} 17. e4 {[%clk 00:55:13]} {[%emt 00:02:19]} dxc4 {[%clk 00:36:19]}
{[%emt 00:05:54]} 18. Nxc4 {[%clk 00:49:52]} {[%emt 00:05:49]} e5 {[%clk
00:32:06]} {[%emt 00:04:43]} 19. dxe5 {[%clk 00:39:57]} {[%emt 00:10:26]} Bc5+
{[%clk 00:26:43]} {[%emt 00:05:54]} 20. Kg2 {[%clk 00:39:42]} {[%emt 00:00:44]}
b5 {[%clk 00:23:49]} {[%emt 00:03:25]} 21. Na5 {[%clk 00:37:41]} {[%emt
00:02:29]} Bb6 {[%clk 00:23:21]} {[%emt 00:00:59]} 22. b4 {[%clk 00:35:03]}
{[%emt 00:03:08]} Bxa5 {[%clk 00:21:41]} {[%emt 00:02:10]} 23. bxa5 {[%clk
00:35:25]} {[%emt 00:00:08]} c5 {[%clk 00:21:39]} {[%emt 00:00:33]} 24. Rad1
{[%clk 00:35:21]} {[%emt 00:00:32]} b4 {[%clk 00:21:02]} {[%emt 00:01:08]} 25.
Qc2 {[%clk 00:33:12]} {[%emt 00:02:39]} Bxf1+ {[%clk 00:20:21]} {[%emt
00:01:10]} 26. Rxf1 {[%clk 00:33:37]} {[%emt 00:00:05]} bxa3 {[%clk 00:16:52]}
{[%emt 00:04:00]} 27. Bxa3 {[%clk 00:32:51]} {[%emt 00:01:16]} Nxe5 {[%clk
00:14:56]} {[%emt 00:02:25]} 28. Nxe5 {[%clk 00:32:07]} {[%emt 00:01:14]} Rxf1
{[%clk 00:15:16]} {[%emt 00:00:10]} 29. Qc4+ {[%clk 00:32:14]} {[%emt
00:00:23]} Kh8 {[%clk 00:12:32]} {[%emt 00:03:14]} 30. Qxf1 {[%clk 00:32:32]}
{[%emt 00:00:11]} Qe6 {[%clk 00:12:06]} {[%emt 00:00:56]} 31. Bb2 {[%clk
00:29:02]} {[%emt 00:04:01]} Rb8 {[%clk 00:11:38]} {[%emt 00:00:57]} 32. Bc3
{[%clk 00:16:20]} {[%emt 00:13:12]} Qb3 {[%clk 00:09:28]} {[%emt 00:02:41]} 33.
Qf3 {[%clk 00:14:25]} {[%emt 00:02:24]} Qc2+ {[%clk 00:07:31]} {[%emt
00:02:28]} 34. Kh3 {[%clk 00:14:24]} {[%emt 00:00:31]} Qc1 {[%clk 00:06:23]}
{[%emt 00:01:38]} 35. Ng4 {[%clk 00:07:22]} {[%emt 00:07:31]} Kg8 {[%clk
00:01:19]} {[%emt 00:05:35]} 36. Nf6+ {[%clk 00:07:11]} {[%emt 00:00:40]} Kh8
{[%clk 00:00:32]} {[%emt 00:01:18]} 37. Nh5 {[%clk 00:07:26]} {[%emt 00:00:12]}
Qg5 {[%clk 00:00:33]} {[%emt 00:00:30]} 38. Qf7 {[%clk 00:04:48]} {[%emt
00:03:08]} Rg8 {[%clk 00:00:32]} {[%emt 00:00:33]} 39. Nxg7 {[%clk 00:04:33]}
{[%emt 00:00:45]} Qh6+ {[%clk 00:00:32]} {[%emt 00:00:29]} 40. Nh5+ {[%clk
00:04:52]} {[%emt 00:00:11]} Rg7 {[%clk 00:00:35]} {[%emt 00:00:25]} 41. Qf8#
{[%clk 00:04:21]} {[%emt 00:00:11]} 1-0

[Event "Schack-SM 2024: Mastarklassen"]
[Site "Fortnox Arena, Hejaregatan 5, Vaxjo, Sweden"]
[Date "2024.07.01"]
[Round "3.7"]
[White "Persson, Sebastian 2007"]
[Black "Lindborg, Patrik"]
[Result "0-1"]
[TimeControl "90 minutes for 40 moves + 30 minutes for the rest of the game + 30 seconds per move from move one."]
[WhiteElo "2063"]
[BlackElo "2162"]

1. c4 {[%clk 01:30:55]} c5 {[%clk 01:30:09]} {[%emt 00:00:50]} 2. g3 {[%clk
01:30:57]} {[%emt 00:00:27]} Nc6 {[%clk 01:30:24]} {[%emt 00:00:17]} 3. Bg2
{[%clk 01:31:10]} {[%emt 00:00:16]} g6 {[%clk 01:30:42]} {[%emt 00:00:12]} 4.
Nf3 {[%clk 01:29:54]} {[%emt 00:01:46]} Bg7 {[%clk 01:31:10]} {[%emt 00:00:03]}
5. O-O {[%clk 01:29:58]} {[%emt 00:00:26]} Nf6 {[%clk 01:31:31]} {[%emt
00:00:08]} 6. d3 {[%clk 01:29:25]} {[%emt 00:01:05]} O-O {[%clk 01:31:33]}
{[%emt 00:00:26]} 7. Nc3 {[%clk 01:29:11]} {[%emt 00:00:43]} d5 {[%clk
01:27:44]} {[%emt 00:04:20]} 8. cxd5 {[%clk 01:27:37]} {[%emt 00:02:05]} Nxd5
{[%clk 01:27:44]} {[%emt 00:00:30]} 9. Nxd5 {[%clk 01:27:54]} {[%emt 00:00:12]}
Qxd5 {[%clk 01:28:08]} {[%emt 00:00:06]} 10. Nd2 {[%clk 01:22:04]} {[%emt
00:06:20]} Qd7 {[%clk 01:28:30]} {[%emt 00:00:07]} 11. Nc4 {[%clk 01:22:10]}
{[%emt 00:00:24]} b6 {[%clk 01:16:23]} {[%emt 00:12:40]} 12. Rb1 {[%clk
01:19:48]} {[%emt 00:02:51]} Bb7 {[%clk 01:14:59]} {[%emt 00:01:54]} 13. a3
{[%clk 01:19:22]} {[%emt 00:00:57]} Rfd8 {[%clk 01:08:35]} {[%emt 00:06:53]} 14.
Bd2 {[%clk 01:16:33]} {[%emt 00:03:18]} Nd4 {[%clk 01:04:35]} {[%emt 00:04:31]}
15. Bxb7 {[%clk 01:16:26]} {[%emt 00:00:37]} Qxb7 {[%clk 01:05:04]} {[%emt
00:00:02]} 16. Bc3 {[%clk 01:15:50]} {[%emt 00:01:06]} b5 {[%clk 01:03:56]}
{[%emt 00:01:39]} 17. Nd2 {[%clk 01:11:25]} {[%emt 00:04:53]} Rac8 {[%clk
01:00:51]} {[%emt 00:03:35]} 18. Bxd4 {[%clk 01:10:38]} {[%emt 00:01:17]} Rxd4
{[%clk 01:00:11]} {[%emt 00:01:11]} 19. Nf3 {[%clk 01:10:24]} {[%emt 00:00:44]}
Rd7 {[%clk 00:57:14]} {[%emt 00:03:26]} 20. Qc1 {[%clk 01:07:21]} {[%emt
00:03:33]} c4 {[%clk 00:52:25]} {[%emt 00:05:19]} 21. dxc4 {[%clk 01:07:32]}
{[%emt 00:00:19]} Rxc4 {[%clk 00:52:51]} {[%emt 00:00:05]} 22. Qe3 {[%clk
01:07:49]} {[%emt 00:00:13]} Re4 {[%clk 00:52:32]} {[%emt 00:00:50]} 23. Qb3
{[%clk 01:03:55]} {[%emt 00:04:22]} Rxe2 {[%clk 00:51:55]} {[%emt 00:01:07]} 24.
Rfe1 {[%clk 01:04:09]} {[%emt 00:00:16]} Rxe1+ {[%clk 00:42:43]} {[%emt
00:09:42]} 25. Rxe1 {[%clk 01:04:28]} {[%emt 00:00:11]} e6 {[%clk 00:42:02]}
{[%emt 00:01:11]} 26. h4 {[%clk 01:01:33]} {[%emt 00:03:24]} Qd5 {[%clk
00:35:45]} {[%emt 00:06:47]} 27. Qc2 {[%clk 00:58:23]} {[%emt 00:03:40]} h6
{[%clk 00:29:24]} {[%emt 00:06:53]} 28. Kg2 {[%clk 00:52:17]} {[%emt 00:06:35]}
Bf6 {[%clk 00:27:28]} {[%emt 00:02:26]} 29. Re2 {[%clk 00:50:25]} {[%emt
00:02:20]} Qb7 {[%clk 00:26:54]} {[%emt 00:01:06]} 30. Qc5 {[%clk 00:47:07]}
{[%emt 00:03:49]} Rd3 {[%clk 00:25:11]} {[%emt 00:02:12]} 31. Re3 {[%clk
00:42:50]} {[%emt 00:04:47]} Bd4 {[%clk 00:24:12]} {[%emt 00:01:29]} 32. Qc2
{[%clk 00:43:08]} {[%emt 00:00:11]} Rxe3 {[%clk 00:24:08]} {[%emt 00:00:36]} 33.
fxe3 {[%clk 00:43:29]} {[%emt 00:00:09]} Bxe3 {[%clk 00:24:00]} {[%emt
00:00:38]} 0-1

[Event "Schack-SM 2024: Mastarklassen"]
[Site "Fortnox Arena, Hejaregatan 5, Vaxjo, Sweden"]
[Date "2024.07.01"]
[Round "3.8"]
[White "Arvidsson, Jonas"]
[Black "Muntean, Victor"]
[Result "0-1"]
[TimeControl "90 minutes for 40 moves + 30 minutes for the rest of the game + 30 seconds per move from move one."]
[WhiteElo "1960"]
[BlackElo "2136"]

1. e4 {[%clk 01:30:58]} {[%emt 00:00:01]} e5 {[%clk 01:30:55]} 2. Nf3 {[%clk
01:31:20]} {[%emt 00:00:08]} Nc6 {[%clk 01:31:21]} {[%emt 00:00:04]} 3. d4
{[%clk 01:31:45]} {[%emt 00:00:05]} exd4 {[%clk 01:31:46]} {[%emt 00:00:05]} 4.
Nxd4 {[%clk 01:32:11]} {[%emt 00:00:04]} Bc5 {[%clk 01:32:07]} {[%emt
00:00:09]} 5. Nxc6 {[%clk 01:32:15]} {[%emt 00:00:25]} Qf6 {[%clk 01:32:28]}
{[%emt 00:00:10]} 6. Qf3 {[%clk 01:32:17]} {[%emt 00:00:28]} bxc6 {[%clk
01:32:50]} {[%emt 00:00:08]} 7. Nd2 {[%clk 01:29:08]} {[%emt 00:03:39]} a5
{[%clk 01:32:27]} {[%emt 00:00:53]} 8. c3 {[%clk 01:26:43]} {[%emt 00:02:55]}
a4 {[%clk 01:26:11]} {[%emt 00:06:47]} 9. Bc4 {[%clk 01:22:40]} {[%emt
00:04:33]} Qxf3 {[%clk 01:21:06]} {[%emt 00:05:34]} 10. Nxf3 {[%clk 01:21:08]}
{[%emt 00:02:02]} Nf6 {[%clk 01:21:15]} {[%emt 00:00:21]} 11. e5 {[%clk
01:18:28]} {[%emt 00:03:11]} Nd5 {[%clk 01:21:11]} {[%emt 00:00:34]} 12. O-O
{[%clk 01:16:39]} {[%emt 00:02:17]} Ba6 {[%clk 01:18:17]} {[%emt 00:03:26]} 13.
Nd2 {[%clk 01:05:19]} {[%emt 00:11:49]} O-O {[%clk 01:15:43]} {[%emt 00:03:04]}
14. Re1 {[%clk 01:02:14]} {[%emt 00:03:35]} Bxc4 {[%clk 01:07:59]} {[%emt
00:08:15]} 15. Nxc4 {[%clk 01:02:21]} {[%emt 00:00:22]} f6 {[%clk 01:08:19]}
{[%emt 00:00:10]} 16. e6 {[%clk 00:53:02]} {[%emt 00:09:49]} Rfe8 {[%clk
01:06:22]} {[%emt 00:02:26]} 17. Bd2 {[%clk 00:53:04]} {[%emt 00:00:30]} Rxe6
{[%clk 01:06:09]} {[%emt 00:00:41]} 18. Rxe6 {[%clk 00:51:45]} {[%emt
00:01:50]} dxe6 {[%clk 01:06:33]} {[%emt 00:00:06]} 19. Re1 {[%clk 00:50:48]}
{[%emt 00:01:26]} Kf7 {[%clk 01:06:42]} {[%emt 00:00:22]} 20. g3 {[%clk
00:50:18]} {[%emt 00:00:59]} Nb6 {[%clk 01:01:02]} {[%emt 00:06:10]} 21. Nxb6
{[%clk 00:44:48]} {[%emt 00:06:01]} cxb6 {[%clk 01:01:13]} {[%emt 00:00:20]} 22.
Be3 {[%clk 00:43:32]} {[%emt 00:01:46]} Bxe3 {[%clk 01:00:14]} {[%emt
00:01:27]} 23. Rxe3 {[%clk 00:43:57]} {[%emt 00:00:06]} a3 {[%clk 01:00:23]}
{[%emt 00:00:21]} 24. Re2 {[%clk 00:40:31]} {[%emt 00:03:56]} axb2 {[%clk
01:00:35]} {[%emt 00:00:18]} 25. Rxb2 {[%clk 00:40:59]} b5 {[%clk 01:00:58]}
{[%emt 00:00:08]} 26. Kf1 {[%clk 00:38:11]} {[%emt 00:03:18]} Ra3 {[%clk
00:59:51]} {[%emt 00:01:36]} 27. Rc2 {[%clk 00:37:32]} {[%emt 00:01:09]} e5
{[%clk 00:59:02]} {[%emt 00:01:20]} 28. Ke2 {[%clk 00:35:52]} {[%emt 00:02:10]}
Ke6 {[%clk 00:59:06]} {[%emt 00:00:25]} 29. Kd2 {[%clk 00:32:09]} {[%emt
00:04:13]} Kd5 {[%clk 00:57:13]} {[%emt 00:02:24]} 30. Kc1 {[%clk 00:31:44]}
{[%emt 00:00:55]} Ke4 {[%clk 00:55:41]} {[%emt 00:02:01]} 31. Kb2 {[%clk
00:28:47]} {[%emt 00:03:27]} Ra4 {[%clk 00:56:01]} {[%emt 00:00:12]} 32. Kb3
{[%clk 00:26:27]} {[%emt 00:02:49]} Kf3 {[%emt 00:08:52]} 33. Rd2 {[%clk
00:18:06]} {[%emt 00:01:30]} Re4 {[%clk 00:55:06]} {[%emt 00:00:24]} 34. Rd7
{[%clk 00:17:45]} {[%emt 00:00:52]} Kxf2 {[%clk 00:54:18]} {[%emt 00:01:17]} 35.
Rxg7 {[%emt 00:02:26]} f5 {[%clk 00:52:15]} {[%emt 00:00:16]} 36. Rxh7 {[%emt
00:01:28]} f4 {[%clk 00:52:39]} {[%emt 00:00:04]} 37. Rf7 {[%clk 00:10:10]}
{[%emt 00:07:31]} Ke2 {[%clk 00:52:18]} {[%emt 00:00:52]} 38. gxf4 {[%clk
00:07:09]} {[%emt 00:03:31]} exf4 {[%clk 00:52:38]} {[%emt 00:00:09]} 39. h4
{[%clk 00:07:35]} {[%emt 00:00:03]} f3 {[%clk 00:52:50]} {[%emt 00:00:18]} 40.
h5 {[%clk 00:07:54]} {[%emt 00:00:12]} f2 {[%clk 00:53:06]} {[%emt 00:00:13]}
0-1